bitfinex/quotes_ETHUSD_20230111
["timestamp","ask_amount","ask_price","bid_price","bid_amount"]
[1673449322816,8.69509999,1332.4,1332.2,1.86211264]
[1673449324304,1.18984999,1332.4,1332.2,1.86211264]
[1673449324449,1.12384999,1332.4,1332.2,1.86211264]
[1673449325098,8.62909999,1332.4,1332.2,3.16211264]
[1673449325311,8.69509999,1332.4,1332.2,1.3]
[1673449325758,8.69509999,1332.4,1332.2,3.79163348]
[1673449325927,8.69509999,1332.4,1332.2,1.3]
[1673449326597,1.18984999,1332.4,1332.2,2.41853285]
[1673449326914,1.12384999,1332.4,1332.3,1.86205276]
[1673449327137,13.53382497,1332.5,1332.3,1.86205276]
[1673449327464,21.03873497,1332.5,1332.3,1.86205276]
[1673449328382,13.53382497,1332.5,1332.3,1.3]
[1673449328621,11.84804999,1332.5,1332.3,1.3]
[1673449328907,10.15404999,1332.5,1332.3,16.1712738]
[1673449329223,10.15404999,1332.5,1332.3,18.65580665]
[1673449329442,10.15404999,1332.5,1332.3,17.35580665]
[1673449329759,9.0302,1332.5,1332.4,1.86188659]
[1673449330482,0.066,1332.5,1332.4,1.86188659]
[1673449330693,6.43874999,1332.6,1332.4,1.86188659]
[1673449330900,8.75371417,1332.6,1332.4,1.86188659]
[1673449331066,8.75371417,1332.6,1332.4,3.16188659]
[1673449331276,8.75371417,1332.6,1332.4,1.3]
[1673449331754,8.75371417,1332.6,1332.3,16.19565285]
[1673449332064,22.57042497,1332.6,1332.4,1.86184399]
[1673449332271,20.88464999,1332.6,1332.4,1.86184399]
[1673449332895,20.88464999,1332.6,1332.4,3.16184399]
[1673449333152,20.88464999,1332.6,1332.4,1.3]
[1673449333361,5.87584999,1332.6,1332.3,1.11853285]
[1673449333524,4.18984999,1332.6,1332.3,20.84361164]
[1673449333736,4.12384999,1332.6,1332.4,3.16182626]
[1673449333999,4.12384999,1332.6,1332.3,19.04752538]
[1673449334209,4.12384999,1332.6,1332.4,1.86182655]
[1673449334360,4.12384999,1332.6,1332.4,3.16182655]
[1673449334572,4.12384999,1332.6,1332.3,11.54200538]
[1673449334826,4.12384999,1332.6,1332.4,1.86181448]
[1673449335062,11.10824999,1332.7,1332.4,10.06820254]
[1673449335216,1.18984999,1332.7,1332.5,3.79766064]
[1673449335429,32.10857498,1332.8,1332.5,5.65931413]
[1673449335430,40.23879497,1332.8,1332.5,5.65931413]
[1673449335644,10.37879497,1332.8,1332.5,11.36833064]
[1673449336288,10.37879497,1332.8,1332.5,5.16366064]
[1673449336523,8.69301999,1332.8,1332.5,7.88704672]
[1673449336876,1.18984999,1332.8,1332.5,22.89635672]
[1673449336994,1.12384999,1332.8,1332.5,15.39166672]
[1673449337775,8.62686999,1332.8,1332.5,21.00502646]
[1673449337989,1.18984999,1332.8,1332.5,23.79729175]
[1673449338181,0.15788828,1332.9,1332.8,1.18984998]
[1673449338396,0.15788828,1332.9,1332.8,8.81183498]
[1673449338397,0.09188828,1332.9,1332.8,8.81183498]
[1673449338718,0.09188828,1332.9,1332.8,20.17849562]
[1673449339248,0.09188828,1332.9,1332.8,6.47249562]
[1673449341845,15.09674828,1332.9,1332.8,2.67483498]
[1673449342069,15.16274828,1332.9,1332.8,2.48984998]
[1673449342459,15.16274828,1332.9,1332.8,0.69107739]
[1673449342901,0.15788828,1332.9,1332.8,0.69107739]
[1673449343118,0.09188828,1332.9,1332.8,0.69107739]
[1673449343312,0.09188828,1332.9,1332.8,11.99173803]
[1673449343496,0.09188828,1332.9,1332.8,14.76414483]
[1673449343707,0.09188828,1332.9,1332.8,7.26114483]
[1673449345834,0.09188828,1332.9,1332.8,4.55473803]
[1673449346039,0.09188828,1332.9,1332.8,4.48873803]
[1673449349233,7.59431828,1332.9,1332.8,4.48873803]
[1673449349540,7.66031828,1332.9,1332.8,4.48873803]
[1673449350437,15.16274828,1332.9,1332.8,4.48873803]
[1673449350983,24.9405064,1332.9,1332.8,0.69107739]
[1673449352862,17.4380764,1332.9,1332.8,0.69107739]
[1673449353507,9.9356464,1332.9,1332.8,0.69107739]
[1673449353853,0.15788828,1332.9,1332.8,0.69107739]
[1673449354066,0.09188828,1332.9,1332.8,0.69107739]
[1673449354955,0.09188828,1332.9,1332.8,8.19407739]
[1673449355165,0.09188828,1332.9,1332.8,8.26007739]
[1673449356224,0.09188828,1332.9,1332.8,0.75707739]
[1673449356455,0.09188828,1332.9,1332.8,0.69107739]
[1673449356675,0.09188828,1332.9,1332.8,8.19407739]
[1673449357007,0.09188828,1332.9,1332.8,10.58671613]
[1673449357375,0.09188828,1332.9,1332.8,3.08371613]
[1673449357617,0.09188828,1332.9,1332.8,0.69107739]
[1673449358786,15.09674828,1332.9,1332.8,0.69107739]
[1673449358999,7.66031828,1332.9,1332.8,0.69107739]
[1673449359171,0.15788828,1332.9,1332.8,0.69107739]
[1673449359386,0.09188828,1332.9,1332.8,0.69107739]
[1673449360115,7.59431828,1332.9,1332.8,0.69107739]
[1673449360326,7.66031828,1332.9,1332.8,0.69107739]
[1673449360538,0.15788828,1332.9,1332.8,0.69107739]
[1673449360831,0.09188828,1332.9,1332.8,0.69107739]
[1673449365204,7.59431828,1332.9,1332.8,0.69107739]
[1673449365380,7.66031828,1332.9,1332.8,0.69107739]
[1673449368260,0.15788828,1332.9,1332.8,0.69107739]
[1673449368416,0.09188828,1332.9,1332.8,0.69107739]
[1673449369986,7.59431828,1332.9,1332.8,0.69107739]
[1673449370253,2.27078404,1332.9,1332.8,0.69107739]
[1673449370423,2.20478404,1332.9,1332.8,0.69107739]
[1673449371650,0.09188828,1332.9,1332.8,0.69107739]
[1673449373268,7.59431828,1332.9,1332.8,0.69107739]
[1673449373478,0.15788828,1332.9,1332.8,0.69107739]
[1673449373703,0.09188828,1332.9,1332.8,0.69107739]
[1673449376216,7.59431828,1332.9,1332.8,0.69107739]
[1673449376424,26.0659784,1332.9,1332.8,0.69107739]
[1673449376641,27.7489784,1332.9,1332.8,0.69107739]
[1673449377780,24.18298489,1332.9,1332.8,0.69107739]
[1673449378032,16.68055489,1332.9,1332.8,0.69107739]
[1673449378243,24.18298489,1332.9,1332.8,0.69107739]
[1673449379997,9.17812489,1332.9,1332.8,0.69107739]
[1673449380214,4.09432477,1332.9,1332.8,0.69107739]
[1673449380428,4.02832477,1332.9,1332.8,0.69107739]
[1673449382326,4.02832477,1332.9,1332.8,15.69707739]
[1673449382671,4.02832477,1332.9,1332.8,15.76307739]
[1673449382847,0.09188828,1332.9,1332.8,2.61832214]
[1673449383060,0.09188828,1332.9,1332.8,2.55232214]
[1673449384897,1.21626746,1332.9,1332.8,2.55232214]
[1673449385061,0.09188828,1332.9,1332.8,2.55232214]
[1673449386473,0.09188828,1332.9,1332.8,13.21951402]
[1673449386779,0.09188828,1332.9,1332.8,4.66117429]
[1673449386997,0.09188828,1332.9,1332.8,4.59517429]
[1673449387152,0.09188828,1332.9,1332.8,2.55232214]
[1673449388043,1.21626746,1332.9,1332.8,2.55232214]
[1673449388221,0.09188828,1332.9,1332.8,2.55232214]
[1673449388431,1.21626746,1332.9,1332.8,2.55232214]
[1673449390269,0.09188828,1332.9,1332.8,2.55232214]
[1673449392241,1.21626746,1332.9,1332.8,2.55232214]
[1673449397414,25.41060167,1332.9,1332.8,0.69107739]
[1673449397625,30.13495036,1332.9,1332.8,0.69107739]
[1673449398097,29.01057118,1332.9,1332.8,0.69107739]
[1673449398306,30.13497193,1332.9,1332.8,0.69107739]
[1673449398977,22.63254193,1332.9,1332.8,0.69107739]
[1673449399585,20.94549772,1332.9,1332.8,0.69107739]
[1673449401251,16.28714903,1332.9,1332.8,0.69107739]
[1673449401568,16.28714903,1332.9,1332.8,1.81241712]
[1673449401569,0.15788828,1332.9,1332.8,1.81241712]
[1673449401801,0.09188828,1332.9,1332.8,11.1767703]
[1673449402022,0.09188828,1332.9,1332.8,11.2427703]
[1673449402529,9.72955294,1333.0,1332.9,0.00283476]
[1673449402721,9.72955294,1333.0,1332.9,1.86418794]
[1673449403186,0.15455294,1333.0,1332.9,1.86418794]
[1673449403401,0.08855294,1333.0,1332.9,14.28561831]
[1673449403610,0.08855294,1333.0,1332.9,22.05427233]
[1673449403925,0.08855294,1333.0,1332.9,14.55184233]
[1673449404104,0.08855294,1333.0,1332.9,22.05427233]
[1673449404315,0.08855294,1333.0,1332.9,20.9329326]
[1673449404547,0.08855294,1333.0,1332.9,24.84432632]
[1673449404737,0.08855294,1333.0,1332.9,32.55450297]
[1673449405101,0.08855294,1333.0,1332.9,47.30885485]
[1673449405240,0.08855294,1333.0,1332.9,43.9727254]
[1673449405607,0.08855294,1333.0,1332.9,47.30885485]
[1673449405801,0.08855294,1333.0,1332.9,41.73004595]
[1673449406399,0.08855294,1333.0,1332.9,43.9727254]
[1673449406978,0.08855294,1333.0,1332.9,42.84750262]
[1673449407146,0.08855294,1333.0,1332.9,41.73004595]
[1673449407607,0.08855294,1333.0,1332.9,42.84749249]
[1673449407916,0.08855294,1333.0,1332.9,42.84754236]
[1673449408079,0.08855294,1333.0,1332.9,42.84756168]
[1673449408293,0.08855294,1333.0,1332.9,41.73004595]
[1673449408559,0.08855294,1333.0,1332.9,42.84703295]
[1673449411018,0.0908479,1333.1,1333.0,0.11753312]
[1673449411223,0.0908479,1333.1,1333.0,33.87691307]
[1673449411438,0.0908479,1333.1,1333.0,38.98859625]
[1673449412120,0.0908479,1333.1,1333.0,40.28859625]
[1673449412502,0.0908479,1333.1,1333.0,39.17209347]
[1673449413380,0.0908479,1333.1,1333.0,40.28859625]
[1673449414282,0.0908479,1333.1,1333.0,41.96659625]
[1673449417900,0.0908479,1333.1,1333.0,40.85009347]
[1673449418060,0.0908479,1333.1,1333.0,38.05784012]
[1673449418278,0.0908479,1333.1,1333.0,37.48497868]
[1673449418528,0.0908479,1333.1,1333.0,37.48495316]
[1673449418934,0.0908479,1333.1,1333.0,34.69384012]
[1673449419344,0.0908479,1333.1,1333.0,37.48495789]
[1673449420635,0.0908479,1333.1,1333.0,38.60146067]
[1673449422184,0.0908479,1333.1,1333.0,48.4621477]
[1673449422582,39.19738126,1333.4,1333.0,50.1561477]
[1673449422789,9.33738126,1333.4,1333.1,15.21284018]
[1673449423055,9.33738126,1333.4,1333.2,28.12132014]
[1673449423362,9.33738126,1333.4,1333.2,28.18732014]
[1673449423813,9.33738126,1333.4,1333.2,29.48732014]
[1673449424588,0.16578126,1333.4,1333.3,3.79766064]
[1673449424900,0.16578126,1333.4,1333.3,26.29820064]
[1673449424901,0.09978126,1333.4,1333.3,26.29820064]
[1673449425103,0.09978126,1333.4,1333.3,29.15733763]
[1673449425658,0.09978126,1333.4,1333.3,30.45733763]
[1673449425865,0.09978126,1333.4,1333.3,22.95715763]
[1673449426479,0.09978126,1333.4,1333.3,30.45733763]
[1673449428039,0.09978126,1333.4,1333.3,22.95715763]
[1673449428519,0.09978126,1333.4,1333.3,30.45733763]
[1673449430396,0.09978126,1333.4,1333.3,15.45697763]
[1673449431871,0.09978126,1333.4,1333.3,5.16366064]
[1673449434662,0.09978126,1333.4,1333.3,12.66384064]
[1673449435178,0.09978126,1333.4,1333.3,27.66420064]
[1673449435761,0.09978126,1333.4,1333.3,20.16402064]
[1673449435940,0.09978126,1333.4,1333.3,12.66384064]
[1673449436149,0.09978126,1333.4,1333.3,5.16366064]
[1673449436575,0.09978126,1333.4,1333.3,12.66384064]
[1673449437001,0.09978126,1333.4,1333.3,20.16402064]
[1673449437220,0.09978126,1333.4,1333.3,25.67235565]
[1673449438177,0.09978126,1333.4,1333.3,33.17253565]
[1673449440265,0.09978126,1333.4,1333.3,27.53281676]
[1673449440488,0.09978126,1333.4,1333.3,30.3235096]
[1673449440686,0.09978126,1333.4,1333.3,22.8233296]
[1673449440878,0.09978126,1333.4,1333.3,20.03263676]
[1673449441088,0.09978126,1333.4,1333.3,12.53245676]
[1673449441647,0.09978126,1333.4,1333.3,37.82372025]
[1673449442034,0.09978126,1333.4,1333.3,38.94022303]
[1673449442564,39.86744006,1333.6,1333.3,40.61845339]
[1673449442774,10.00744006,1333.6,1333.4,5.65814871]
[1673449443122,10.00744006,1333.6,1333.4,3.86366064]
[1673449443286,10.00744006,1333.6,1333.4,11.29708064]
[1673449443491,10.00744006,1333.6,1333.4,11.36308064]
[1673449443942,10.00744006,1333.6,1333.4,12.66308064]
[1673449445324,10.00744006,1333.6,1333.4,5.16366064]
[1673449445541,18.63049081,1333.6,1333.4,5.16366064]
[1673449445847,26.12914081,1333.6,1333.4,5.16366064]
[1673449446493,10.00744006,1333.6,1333.4,5.16366064]
[1673449446645,11.13184081,1333.6,1333.4,12.66318064]
[1673449446977,10.00744006,1333.6,1333.4,12.66318064]
[1673449447641,10.00744006,1333.6,1333.4,5.16366064]
[1673449449402,10.00744006,1333.6,1333.4,20.16288064]
[1673449449617,10.00744006,1333.6,1333.4,22.95357717]
[1673449449841,10.00744006,1333.6,1333.5,1.86026238]
[1673449450007,10.00744006,1333.6,1333.5,16.85838238]
[1673449450245,10.00744006,1333.6,1333.5,16.92438238]
[1673449450615,0.16924006,1333.6,1333.5,22.02204302]
[1673449450787,0.10324006,1333.6,1333.5,22.02204302]
[1673449451351,0.10324006,1333.6,1333.5,25.8275291]
[1673449451824,0.10324006,1333.6,1333.5,18.3284691]
[1673449452037,0.10324006,1333.6,1333.5,16.46820672]
[1673449453400,0.10324006,1333.6,1333.5,23.96726672]
[1673449454289,0.10324006,1333.6,1333.5,16.46820672]
[1673449455739,0.10324006,1333.6,1333.5,18.32845311]
[1673449455952,0.10324006,1333.6,1333.5,18.33135331]
[1673449456356,0.10324006,1333.6,1333.5,16.47110692]
[1673449456574,0.10324006,1333.6,1333.5,19.44775021]
[1673449456912,0.10324006,1333.6,1333.5,33.32936743]
[1673449457114,0.10324006,1333.6,1333.5,37.23656674]
[1673449458268,0.10324006,1333.6,1333.5,36.12006396]
[1673449459556,0.10324006,1333.6,1333.5,37.23656674]
[1673449461454,0.10324006,1333.6,1333.5,36.12006396]
[1673449462578,9.81154006,1333.8,1333.5,36.12006396]
[1673449462774,9.81154006,1333.8,1333.6,7.40966704]
[1673449462978,0.16924006,1333.8,1333.7,18.79352064]
[1673449463194,0.10324006,1333.8,1333.7,18.85952064]
[1673449463800,0.10324006,1333.8,1333.7,20.15952064]
[1673449465390,0.10324006,1333.8,1333.7,12.66159064]
[1673449465556,0.10324006,1333.8,1333.7,15.78857534]
[1673449467338,0.10324006,1333.8,1333.7,8.29064534]
[1673449467550,0.10324006,1333.8,1333.7,15.78857534]
[1673449469617,0.10324006,1333.8,1333.7,23.28650534]
[1673449469978,0.10324006,1333.8,1333.7,15.78857534]
[1673449471534,0.10324006,1333.8,1333.7,22.13011742]
[1673449471744,0.10324006,1333.8,1333.7,34.33625217]
[1673449472077,1e-08,1333.8,1333.7,43.82116733]
[1673449472289,1e-08,1333.8,1333.7,38.24235843]
[1673449472463,1e-08,1333.8,1333.7,37.12585565]
[1673449474772,1e-08,1333.8,1333.7,38.24235843]
[1673449475593,1e-08,1333.8,1333.7,37.12585565]
[1673449477003,1e-08,1333.8,1333.7,25.14636359]
[1673449477326,1e-08,1333.8,1333.7,23.28650534]
[1673449478227,1e-08,1333.8,1333.7,30.78443534]
[1673449478769,1e-08,1333.8,1333.7,8.29064534]
[1673449478974,1e-08,1333.8,1333.7,15.78857534]
[1673449479195,1e-08,1333.8,1333.7,23.28650534]
[1673449479761,1e-08,1333.8,1333.7,32.6443149]
[1673449480655,1e-08,1333.8,1333.7,23.28650534]
[1673449481548,1e-08,1333.8,1333.7,30.78443534]
[1673449481862,1e-08,1333.8,1333.7,15.78857534]
[1673449482049,1e-08,1333.8,1333.7,8.29064534]
[1673449482809,18.68318075,1334.0,1333.8,0.00199999]
[1673449482965,1.684,1333.9,1333.8,0.00199999]
[1673449483438,24.17443,1333.9,1333.8,0.00199999]
[1673449483599,27.77892075,1333.9,1333.8,0.00199999]
[1673449483807,40.42706225,1333.9,1333.8,1.30199999]
[1673449484065,30.51616225,1333.9,1333.8,1.30199999]
[1673449485110,23.01935225,1333.9,1333.8,1.30199999]
[1673449486696,30.51616225,1333.9,1333.8,1.30199999]
[1673449487117,32.20320646,1333.9,1333.8,1.30199999]
[1673449487331,24.70639646,1333.9,1333.8,1.30199999]
[1673449487936,32.20320646,1333.9,1333.8,1.30199999]
[1673449488282,31.07880571,1333.9,1333.8,1.30199999]
[1673449489700,33.32819799,1333.9,1333.8,1.30199999]
[1673449490258,35.01919799,1333.9,1333.8,1.30199999]
[1673449491010,33.33215378,1333.9,1333.8,1.30199999]
[1673449491178,35.01534997,1333.9,1333.8,1.30199999]
[1673449492227,33.33215378,1333.9,1333.8,1.30199999]
[1673449492800,36.14389413,1333.9,1333.8,1.30199999]
[1673449493017,33.33215378,1333.9,1333.8,1.30199999]
[1673449495486,36.14389413,1333.9,1333.8,1.30199999]
[1673449495682,33.33215378,1333.9,1333.8,1.30199999]
[1673449496062,36.14389413,1333.9,1333.8,1.30199999]
[1673449496421,33.33215378,1333.9,1333.8,1.30199999]
[1673449498033,36.14389413,1333.9,1333.8,1.30199999]
[1673449498250,33.33215378,1333.9,1333.8,1.30199999]
[1673449498939,35.01491095,1333.9,1333.8,1.30199999]
[1673449499996,32.76551867,1333.9,1333.8,1.30199999]
[1673449500778,35.01491095,1333.9,1333.8,1.30199999]
[1673449502303,32.76551867,1333.9,1333.8,1.30199999]
[1673449502538,35.01491095,1333.9,1333.8,1.30199999]
[1673449502769,11.39666479,1333.9,1333.8,1.30199999]
[1673449503038,4.56133329,1333.9,1333.8,1.30199999]
[1673449503175,4.49533329,1333.9,1333.8,1.30199999]
[1673449503396,11.99214329,1333.9,1333.8,1.30199999]
[1673449503576,12.05814329,1333.9,1333.8,1.30199999]
[1673449503782,19.55495329,1333.9,1333.8,1.30199999]
[1673449503996,24.19189488,1333.9,1333.8,1.30199999]
[1673449504427,24.19189488,1333.9,1333.8,0.00199999]
[1673449504638,33.47429488,1333.9,1333.8,0.00199999]
[1673449505251,16.79791771,1333.9,1333.8,0.00199999]
[1673449505461,12.16097612,1333.9,1333.8,0.00199999]
[1673449506137,11.0394,1333.9,1333.8,0.00199999]
[1673449506980,12.16097612,1333.9,1333.8,0.00199999]
[1673449507351,18.53621,1333.9,1333.8,0.00199999]
[1673449507559,19.65778612,1333.9,1333.8,0.00199999]
[1673449507982,27.15459612,1333.9,1333.8,0.00199999]
[1673449508244,24.67473568,1333.9,1333.8,0.00199999]
[1673449509204,0.00102929,1333.8,1333.7,1.3]
[1673449509506,1.68202929,1333.8,1333.7,1.3]
[1673449513347,0.00102929,1333.8,1333.7,1.3]
[1673449513549,0.00102929,1333.8,1333.5,35.71830484]
[1673449513818,0.00102929,1333.8,1333.6,7.36949112]
[1673449513981,0.00102929,1333.8,1333.6,3.86366064]
[1673449514334,0.00102929,1333.8,1333.6,3.79766064]
[1673449514918,7.49840929,1333.8,1333.6,3.79766064]
[1673449515127,0.06702929,1333.8,1333.6,3.79766064]
[1673449515338,0.00102929,1333.8,1333.6,3.79766064]
[1673449515758,1.12260541,1333.8,1333.6,3.79766064]
[1673449516852,8.62007541,1333.8,1333.5,21.83729762]
[1673449517070,1.18860541,1333.8,1333.5,26.51993914]
[1673449517242,1.12260541,1333.8,1333.5,29.31023398]
[1673449517453,0.00102929,1333.8,1333.6,9.35849558]
[1673449517702,0.00102929,1333.8,1333.6,10.35464484]
[1673449517923,0.00102929,1333.8,1333.6,14.9536102]
[1673449518498,0.00102929,1333.8,1333.7,3.79766064]
[1673449518740,0.00102929,1333.8,1333.7,5.6576722]
[1673449518958,0.00102929,1333.8,1333.7,5.7236722]
[1673449519139,0.00102929,1333.8,1333.7,13.2216022]
[1673449519349,0.00102929,1333.8,1333.7,16.89402372]
[1673449521229,0.00102929,1333.8,1333.7,26.07795372]
[1673449521439,0.00102929,1333.8,1333.7,28.86824856]
[1673449521668,0.00102929,1333.8,1333.7,22.48682134]
[1673449521864,0.00102929,1333.8,1333.7,27.1944565]
[1673449522075,0.00102929,1333.8,1333.7,31.66676093]
[1673449522394,0.00102929,1333.8,1333.7,37.48268134]
[1673449522609,0.00102929,1333.8,1333.7,39.16469093]
[1673449522839,0.00102929,1333.8,1333.7,40.83670221]
[1673449523018,0.00102929,1333.8,1333.7,45.8696765]
[1673449523224,0.00102929,1333.8,1333.7,48.8696765]
[1673449524322,0.00102929,1333.8,1333.7,41.60885801]
[1673449524539,0.00102929,1333.8,1333.7,48.85876678]
[1673449524862,0.00102929,1333.8,1333.7,43.27995788]
[1673449525898,0.00102929,1333.8,1333.7,41.03727843]
[1673449526268,0.00102929,1333.8,1333.7,43.27995788]
[1673449526476,0.00102929,1333.8,1333.7,41.03727843]
[1673449527256,0.00102929,1333.8,1333.7,42.1507299]
[1673449527427,0.00102929,1333.8,1333.7,41.03727843]
[1673449527849,0.00102929,1333.8,1333.7,42.15063025]
[1673449528394,0.00102929,1333.8,1333.7,42.15021541]
[1673449528610,0.00102929,1333.8,1333.7,55.03727843]
[1673449528804,0.00102929,1333.8,1333.7,55.59977843]
[1673449529233,0.00102929,1333.8,1333.7,63.42126678]
[1673449529476,0.00102929,1333.8,1333.7,57.84245788]
[1673449529788,0.00102929,1333.8,1333.7,55.59977843]
[1673449530004,30.04229778,1334.1,1333.8,0.00108699]
[1673449530223,0.18229778,1334.1,1333.9,26.28809064]
[1673449530367,0.11629778,1334.1,1334.0,11.29391064]
[1673449530577,0.11629778,1334.1,1334.0,11.35991064]
[1673449531258,0.11629778,1334.1,1334.0,28.04041064]
[1673449531634,0.11629778,1334.1,1334.0,20.54416064]
[1673449531893,0.11629778,1334.1,1334.0,23.62719094]
[1673449532100,0.11629778,1334.1,1334.0,31.12344094]
[1673449532471,0.11629778,1334.1,1334.0,6.94669094]
[1673449532788,0.11629778,1334.1,1334.0,3.86366064]
[1673449532991,0.11629778,1334.1,1334.0,18.85616064]
[1673449533321,0.11629778,1334.1,1334.0,29.32438916]
[1673449533567,0.11629778,1334.1,1334.0,31.01438916]
[1673449533781,0.11629778,1334.1,1334.0,32.68548903]
[1673449533942,0.11629778,1334.1,1334.0,35.53575903]
[1673449534145,0.11629778,1334.1,1334.0,38.3250093]
[1673449534390,0.11629778,1334.1,1334.0,30.8287593]
[1673449534601,0.11629778,1334.1,1334.0,37.212328]
[1673449535462,0.11629778,1334.1,1334.0,14.723578]
[1673449535777,0.11629778,1334.1,1334.0,11.93432773]
[1673449536386,0.11629778,1334.1,1334.0,19.43057773]
[1673449536827,0.11629778,1334.1,1334.0,17.57128051]
[1673449537512,0.11629778,1334.1,1334.0,8.38503051]
[1673449537878,0.11629778,1334.1,1334.0,17.18128051]
[1673449538772,5.53964266,1334.3,1334.0,17.18128051]
[1673449539233,3.03964266,1334.3,1334.0,24.67753051]
[1673449539556,2.97364266,1334.3,1334.0,24.67753051]
[1673449539721,0.13264266,1334.3,1334.0,32.17378051]
[1673449539935,0.13264266,1334.3,1334.1,2.46775305]
[1673449540147,0.13264266,1334.3,1334.1,17.45852305]
[1673449540356,0.13264266,1334.3,1334.1,10.02897305]
[1673449540927,0.13264266,1334.3,1334.1,3.83375305]
[1673449541089,0.13264266,1334.3,1334.1,1.3]
[1673449541971,0.13264266,1334.3,1334.2,3.79766064]
[1673449542163,0.13264266,1334.3,1334.2,11.29278064]
[1673449542341,0.13264266,1334.3,1334.2,11.35878064]
[1673449542551,0.13264266,1334.3,1334.2,12.65878064]
[1673449543925,0.13264266,1334.3,1334.2,27.64902064]
[1673449544134,0.13264266,1334.3,1334.2,23.6683347]
[1673449544759,0.13264266,1334.3,1334.2,16.1732147]
[1673449544975,0.13264266,1334.3,1334.2,8.6780947]
[1673449545227,0.13264266,1334.3,1334.2,5.16366064]
[1673449546142,0.13264266,1334.3,1334.2,1.366]
[1673449546334,0.13264266,1334.3,1334.2,1.3]
[1673449547548,16.28876266,1334.3,1334.2,1.3]
[1673449547753,16.35476266,1334.3,1334.2,1.3]
[1673449548066,4.18084569,1334.3,1334.2,1.3]
[1673449548228,4.11484569,1334.3,1334.2,1.3]
[1673449548438,11.60940569,1334.3,1334.2,1.3]
[1673449548686,4.18084569,1334.3,1334.2,1.3]
[1673449548891,1.29964266,1334.3,1334.2,1.3]
[1673449549104,0.13264266,1334.3,1334.2,1.3]
[1673449550168,1.29964266,1334.3,1334.2,1.3]
[1673449551222,0.13264266,1334.3,1334.2,1.3]
[1673449552014,1e-08,1334.3,1334.2,1.3]
[1673449554176,1e-08,1334.3,1334.2,8.79512]
[1673449554332,1e-08,1334.3,1334.2,11.24634]
[1673449554539,1e-08,1334.3,1334.2,3.75122]
[1673449554795,1e-08,1334.3,1334.2,3.68522]
[1673449555114,1e-08,1334.3,1334.2,11.18034]
[1673449555319,1e-08,1334.3,1334.2,11.24634]
[1673449555546,1e-08,1334.3,1334.2,15.04400064]
[1673449555928,1e-08,1334.3,1334.2,7.54888064]
[1673449557415,1e-08,1334.3,1334.2,15.04400064]
[1673449558078,1e-08,1334.3,1334.2,22.53912064]
[1673449558263,1e-08,1334.3,1334.2,30.03424064]
[1673449558487,1e-08,1334.3,1334.2,31.8934655]
[1673449558690,0.12824764,1334.4,1334.3,0.00199999]
[1673449558885,0.12824764,1334.4,1334.3,11.29422063]
[1673449559097,0.12824764,1334.4,1334.3,11.36022063]
[1673449559725,0.12824764,1334.4,1334.3,12.66022063]
[1673449559945,0.12824764,1334.4,1334.3,23.15834869]
[1673449561213,0.12824764,1334.4,1334.3,15.66378869]
[1673449562352,0.12824764,1334.4,1334.3,8.16922869]
[1673449563608,0.12824764,1334.4,1334.3,5.16566063]
[1673449564280,8.78924764,1334.4,1334.3,1.36799999]
[1673449564447,18.03224764,1334.4,1334.3,1.30199999]
[1673449564910,19.15382376,1334.4,1334.3,1.30199999]
[1673449565120,22.99202782,1334.4,1334.3,1.30199999]
[1673449565544,15.49802782,1334.4,1334.3,1.30199999]
[1673449565757,24.67478499,1334.4,1334.3,1.30199999]
[1673449566331,26.36478499,1334.4,1334.3,1.30199999]
[1673449566680,18.87078499,1334.4,1334.3,1.30199999]
[1673449567941,26.36478499,1334.4,1334.3,1.30199999]
[1673449568147,26.34978499,1334.4,1334.3,1.30199999]
[1673449568552,25.22820887,1334.4,1334.3,1.30199999]
[1673449568741,10.24020887,1334.4,1334.3,1.30199999]
[1673449568957,11.36288817,1334.4,1334.3,1.30199999]
[1673449571325,11.36316644,1334.4,1334.3,1.30199999]
[1673449572067,19.98360115,1334.4,1334.3,1.30199999]
[1673449572233,17.73420887,1334.4,1334.3,1.30199999]
[1673449572577,27.47760115,1334.4,1334.3,1.30199999]
[1673449572789,25.22820887,1334.4,1334.3,1.30199999]
[1673449573163,25.22820887,1334.4,1334.3,1.3]
[1673449573843,27.47760115,1334.4,1334.3,1.3]
[1673449574421,18.85723721,1334.4,1334.3,1.3]
[1673449575316,17.73420887,1334.4,1334.3,1.3]
[1673449576214,18.85732103,1334.4,1334.3,1.3]
[1673449576471,11.36332103,1334.4,1334.3,1.3]
[1673449576625,18.85732103,1334.4,1334.3,1.3]
[1673449577695,11.36332103,1334.4,1334.3,1.3]
[1673449578974,17.73420887,1334.4,1334.3,1.3]
[1673449579194,9.68053379,1334.4,1334.3,1.3]
[1673449579419,5.84232973,1334.4,1334.3,1.3]
[1673449580569,2.99732973,1334.4,1334.3,1.3]
[1673449580744,2.93132973,1334.4,1334.3,1.3]
[1673449582270,1.80824764,1334.4,1334.3,1.3]
[1673449582426,2.93132973,1334.4,1334.3,1.3]
[1673449582632,1.80824764,1334.4,1334.3,3.15925764]
[1673449582860,2.93132973,1334.4,1334.3,1.3]
[1673449583264,2.93132973,1334.4,1334.3,1.25]
[1673449583724,1.80824764,1334.4,1334.3,3.1092574]
[1673449584097,1.80824764,1334.4,1334.3,1.25]
[1673449584316,1.80824764,1334.4,1334.3,3.10925459]
[1673449585054,1.80824764,1334.4,1334.3,6.90691523]
[1673449585289,1.81024764,1334.4,1334.3,6.97091523]
[1673449585591,1.80824764,1334.4,1334.3,6.97291523]
[1673449588502,0.21128969,1334.5,1334.3,8.89415618]
[1673449588749,0.21128969,1334.5,1334.4,6.76959653]
[1673449588943,0.14528969,1334.5,1334.4,29.31759653]
[1673449589134,0.14528969,1334.5,1334.4,32.65096478]
[1673449589376,0.14528969,1334.5,1334.4,35.43983569]
[1673449589584,0.14528969,1334.5,1334.4,36.73983569]
[1673449590247,0.14528969,1334.5,1334.4,37.85251699]
[1673449591275,0.14528969,1334.5,1334.4,36.73983569]
[1673449592110,1e-08,1334.6,1334.4,33.95096478]
[1673449592330,1.68100001,1334.6,1334.4,5.16366064]
[1673449592650,1.68100001,1334.6,1334.4,20.15136064]
[1673449592862,1.68100001,1334.6,1334.4,12.65736064]
[1673449593468,1.68100001,1334.6,1334.4,5.16366064]
[1673449594093,1.68100001,1334.6,1334.4,5.24001203]
[1673449594301,9.17401001,1334.6,1334.4,5.24001203]
[1673449594512,9.17401001,1334.6,1334.4,5.16366064]
[1673449594513,1.74700001,1334.6,1334.4,5.16366064]
[1673449594755,1.68100001,1334.6,1334.4,12.65757064]
[1673449595597,1.68100001,1334.6,1334.4,5.16366064]
[1673449596320,2.5,1334.5,1334.4,5.16366064]
[1673449597175,10.3629821,1334.6,1334.4,5.16366064]
[1673449597389,2.8700821,1334.6,1334.4,6.78742267]
[1673449597603,2.8040821,1334.6,1334.4,6.78942267]
[1673449597808,10.2969621,1334.6,1334.4,6.78942267]
[1673449597984,1.74700001,1334.6,1334.4,6.78942267]
[1673449598212,1.68100001,1334.6,1334.4,14.28336267]